[Event "Late-Titled-Tuesday-Blitz-April-16-2024"]
[Site "Chess.com"]
[Date "2024.04.16"]
[Round "3"]
[White "SmirnovTimofey2000"]
[Black "esrosenberg"]
[Result "0-1"]
[WhiteElo "1985"]
[BlackElo "2343"]
[TimeControl "180+1"]
[EndTime "14:27:01 PDT"]
[Termination "esrosenberg won on time"]

1. d4 {[%clk 0:02:57.6]} 1... d5 {[%clk 0:02:53.7]} 2. Bf4 {[%clk 0:02:56.6]}
2... c5 {[%clk 0:02:52]} 3. c3 {[%clk 0:02:56.3]} 3... Nc6 {[%clk 0:02:47.7]} 4.
e3 {[%clk 0:02:56]} 4... Nf6 {[%clk 0:02:43.2]} 5. Nd2 {[%clk 0:02:55.8]} 5...
e6 {[%clk 0:02:42.3]} 6. Ngf3 {[%clk 0:02:55.1]} 6... Bd6 {[%clk 0:02:42.8]} 7.
Bg3 {[%clk 0:02:53.1]} 7... O-O {[%clk 0:02:41.3]} 8. Bd3 {[%clk 0:02:51.2]}
8... cxd4 {[%clk 0:02:39.8]} 9. exd4 {[%clk 0:02:51]} 9... Qc7 {[%clk
0:02:39.9]} 10. O-O {[%clk 0:02:46.7]} 10... Bd7 {[%clk 0:02:39.4]} 11. Re1
{[%clk 0:02:42.6]} 11... Rab8 {[%clk 0:02:39.5]} 12. Ne5 {[%clk 0:02:36.2]}
12... b5 {[%clk 0:02:37.5]} 13. Ndf3 {[%clk 0:02:21.7]} 13... Be8 {[%clk
0:02:37.6]} 14. a3 {[%clk 0:02:13.3]} 14... Nd7 {[%clk 0:02:34]} 15. Nxd7 {[%clk
0:02:04.7]} 15... Bxd7 {[%clk 0:02:32.3]} 16. Bxd6 {[%clk 0:02:00.8]} 16... Qxd6
{[%clk 0:02:31.6]} 17. Ne5 {[%clk 0:02:00]} 17... Nxe5 {[%clk 0:02:31.2]} 18.
Rxe5 {[%clk 0:02:00.9]} 18... f6 {[%clk 0:02:30.8]} 19. Re1 {[%clk 0:01:58.6]}
19... e5 {[%clk 0:02:31]} 20. dxe5 {[%clk 0:01:52.6]} 20... fxe5 {[%clk
0:02:31]} 21. Qh5 {[%clk 0:01:43.8]} 21... e4 {[%clk 0:02:31]} 22. Be2 {[%clk
0:01:40.6]} 22... Rf5 {[%clk 0:02:30.9]} 23. Qh3 {[%clk 0:01:31.8]} 23... Rbf8
{[%clk 0:02:31.2]} 24. Qg3 {[%clk 0:01:06]} 24... Qf6 {[%clk 0:02:13.4]} 25. Rf1
{[%clk 0:01:02.6]} 25... Rg5 {[%clk 0:02:13.5]} 26. Qe3 {[%clk 0:00:58.8]} 26...
h5 {[%clk 0:01:54]} 27. Rad1 {[%clk 0:00:56.7]} 27... Be6 {[%clk 0:01:53.1]} 28.
Bxb5 {[%clk 0:00:51.6]} 28... d4 {[%clk 0:01:52.3]} 29. Qxd4 {[%clk 0:00:46.7]}
29... Rxb5 {[%clk 0:01:48.8]} 30. Qxe4 {[%clk 0:00:18.7]} 30... Rxb2 {[%clk
0:01:47.6]} 31. Rd6 {[%clk 0:00:14.8]} 31... Rb6 {[%clk 0:01:43.1]} 32. Rxb6
{[%clk 0:00:02.5]} 32... axb6 {[%clk 0:01:44]} 33. Qc6 {[%clk 0:00:02.8]} 33...
Rc8 {[%clk 0:01:29.6]} 34. Qxb6 {[%clk 0:00:02.8]} 34... Rxc3 {[%clk 0:01:24.2]}
35. Re1 {[%clk 0:00:02.9]} 35... Bf7 {[%clk 0:01:23.3]} 36. Qb4 {[%clk
0:00:01.6]} 36... Rc2 {[%clk 0:01:18.9]} 37. Qb3 {[%clk 0:00:01.4]} 37... Qxf2+
{[%clk 0:01:16.2]} 0-1

[Event "Late-Titled-Tuesday-Blitz-April-16-2024"]
[Site "Chess.com"]
[Date "2024.04.16"]
[Round "3"]
[White "lamomiajunior"]
[Black "h4parah5"]
[Result "0-1"]
[WhiteElo "2736"]
[BlackElo "3032"]
[TimeControl "180+1"]
[EndTime "14:27:04 PDT"]
[Termination "h4parah5 won by resignation"]

1. d4 {[%clk 0:03:00.9]} 1... Nf6 {[%clk 0:03:00.1]} 2. c4 {[%clk 0:03:01.4]}
2... e6 {[%clk 0:02:59.9]} 3. Nc3 {[%clk 0:03:01.8]} 3... c5 {[%clk 0:02:58.7]}
4. d5 {[%clk 0:03:01.5]} 4... exd5 {[%clk 0:02:59.6]} 5. cxd5 {[%clk 0:03:02.4]}
5... d6 {[%clk 0:03:00.1]} 6. e4 {[%clk 0:03:02.9]} 6... g6 {[%clk 0:03:00.7]}
7. f4 {[%clk 0:03:03.6]} 7... Bh6 {[%clk 0:03:00.6]} 8. Bb5+ {[%clk 0:03:04.2]}
8... Nbd7 {[%clk 0:02:59]} 9. a4 {[%clk 0:03:01.9]} 9... O-O {[%clk 0:02:58.1]}
10. Nf3 {[%clk 0:03:00.4]} 10... Nxe4 {[%clk 0:02:42.1]} 11. Nxe4 {[%clk
0:02:58.3]} 11... Re8 {[%clk 0:02:42.2]} 12. Ne5 {[%clk 0:02:28]} 12... dxe5
{[%clk 0:02:36.7]} 13. O-O {[%clk 0:02:27.2]} 13... exf4 {[%clk 0:02:27.5]} 14.
Bxf4 {[%clk 0:02:19.5]} 14... Bxf4 {[%clk 0:02:19.1]} 15. Rxf4 {[%clk
0:02:19.1]} 15... f5 {[%clk 0:02:19.7]} 16. d6 {[%clk 0:01:25.6]} 16... Re5
{[%clk 0:02:01.7]} 17. Qb3+ {[%clk 0:01:18.6]} 17... Kg7 {[%clk 0:01:12.6]} 18.
Qc3 {[%clk 0:01:16.9]} 18... Kh6 {[%clk 0:01:06.7]} 19. Qh3+ {[%clk 0:00:26.2]}
19... Kg7 {[%clk 0:01:06]} 20. Qc3 {[%clk 0:00:14]} 20... Kh6 {[%clk 0:00:56]}
21. Qh3+ {[%clk 0:00:12.2]} 21... Kg7 {[%clk 0:00:56.2]} 22. Qd3 {[%clk
0:00:13]} 22... Rxe4 {[%clk 0:00:51.4]} 23. Rxe4 {[%clk 0:00:12.4]} 23... fxe4
{[%clk 0:00:51.5]} 24. Qxe4 {[%clk 0:00:09.3]} 24... Nf6 {[%clk 0:00:50.7]} 25.
Qe5 {[%clk 0:00:09.1]} 25... Bf5 {[%clk 0:00:46.6]} 26. Rf1 {[%clk 0:00:09]}
26... a6 {[%clk 0:00:44.4]} 27. g3 {[%clk 0:00:06.5]} 27... axb5 {[%clk
0:00:43]} 0-1

[Event "Late-Titled-Tuesday-Blitz-April-16-2024"]
[Site "Chess.com"]
[Date "2024.04.16"]
[Round "3"]
[White "GoltsevDmitry2000"]
[Black "DanielNaroditsky"]
[Result "0-1"]
[WhiteElo "2781"]
[BlackElo "3124"]
[TimeControl "180+1"]
[EndTime "14:27:05 PDT"]
[Termination "DanielNaroditsky won on time"]

1. e4 {[%clk 0:03:00]} 1... g6 {[%clk 0:02:56.3]} 2. d4 {[%clk 0:02:58.9]} 2...
Bg7 {[%clk 0:02:56.7]} 3. c3 {[%clk 0:02:58.5]} 3... d6 {[%clk 0:02:56.6]} 4.
Nf3 {[%clk 0:02:58.8]} 4... Nf6 {[%clk 0:02:56.8]} 5. Bd3 {[%clk 0:02:59.4]}
5... O-O {[%clk 0:02:57]} 6. O-O {[%clk 0:02:59.9]} 6... Bg4 {[%clk 0:02:49.5]}
7. h3 {[%clk 0:02:59.4]} 7... Bxf3 {[%clk 0:02:49.9]} 8. Qxf3 {[%clk 0:03:00.2]}
8... Nc6 {[%clk 0:02:50.8]} 9. Bg5 {[%clk 0:03:00]} 9... h6 {[%clk 0:02:50.8]}
10. Bxf6 {[%clk 0:02:59.3]} 10... Bxf6 {[%clk 0:02:51.1]} 11. Nd2 {[%clk
0:02:59.2]} 11... Bg7 {[%clk 0:02:45.3]} 12. Rfe1 {[%clk 0:02:56.6]} 12... e5
{[%clk 0:02:45.6]} 13. dxe5 {[%clk 0:02:54]} 13... Nxe5 {[%clk 0:02:43]} 14. Qe2
{[%clk 0:02:54]} 14... Re8 {[%clk 0:02:42.4]} 15. Nf3 {[%clk 0:02:53.1]} 15...
Nxf3+ {[%clk 0:02:37.3]} 16. Qxf3 {[%clk 0:02:52.4]} 16... Qg5 {[%clk
0:02:38.2]} 17. Qe3 {[%clk 0:02:51.1]} 17... Qh4 {[%clk 0:02:36.4]} 18. Bc4
{[%clk 0:02:46.7]} 18... Re7 {[%clk 0:02:33.8]} 19. Rad1 {[%clk 0:02:41.9]}
19... Rae8 {[%clk 0:02:33]} 20. Qxa7 {[%clk 0:02:36.4]} 20... c6 {[%clk
0:02:19]} 21. Rxd6 {[%clk 0:02:24.7]} 21... b5 {[%clk 0:02:14.4]} 22. Bxf7+
{[%clk 0:01:55.7]} 22... Rxf7 {[%clk 0:02:13.8]} 23. Qc5 {[%clk 0:01:55.5]}
23... Bf8 {[%clk 0:01:49.8]} 24. Re2 {[%clk 0:00:28.3]} 24... Re6 {[%clk
0:01:39.1]} 25. g3 {[%clk 0:00:04.4]} 25... Bxd6 {[%clk 0:01:31.6]} 26. Qxd6
{[%clk 0:00:03.5]} 26... Rxd6 {[%clk 0:01:29.6]} 27. gxh4 {[%clk 0:00:04.2]}
27... Rf4 {[%clk 0:01:27]} 28. Kg2 {[%clk 0:00:04.3]} 28... Rxh4 {[%clk
0:01:27.4]} 29. Kg3 {[%clk 0:00:04.2]} 29... g5 {[%clk 0:01:28]} 30. f3 {[%clk
0:00:04.7]} 30... Rf4 {[%clk 0:01:27.8]} 31. b3 {[%clk 0:00:05.2]} 31... Rd3
{[%clk 0:01:28.2]} 32. Rf2 {[%clk 0:00:05.3]} 32... Rxc3 {[%clk 0:01:28.8]} 33.
a4 {[%clk 0:00:05.6]} 33... Rxb3 {[%clk 0:01:28.9]} 34. axb5 {[%clk 0:00:06]}
34... cxb5 {[%clk 0:01:29.4]} 35. e5 {[%clk 0:00:06.7]} 35... Re4 {[%clk
0:01:29.4]} 36. Rc2 {[%clk 0:00:05.4]} 36... Rxe5 {[%clk 0:01:29.7]} 37. Kg4
{[%clk 0:00:05.9]} 37... Kf7 {[%clk 0:01:27]} 38. f4 {[%clk 0:00:05.2]} 38...
Rb4 {[%clk 0:01:27.2]} 39. Rc7+ {[%clk 0:00:04.4]} 39... Kf6 {[%clk 0:01:27.3]}
40. Rc6+ {[%clk 0:00:04.4]} 40... Re6 {[%clk 0:01:28]} 41. Rc3 {[%clk
0:00:03.6]} 41... Rxf4+ {[%clk 0:01:28.6]} 42. Kg3 {[%clk 0:00:04.5]} 42... h5
{[%clk 0:01:29]} 43. h4 {[%clk 0:00:04.9]} 43... Rxh4 {[%clk 0:01:29.2]} 44.
Rf3+ {[%clk 0:00:04.4]} 44... Kg6 {[%clk 0:01:29.8]} 45. Ra3 {[%clk 0:00:05.3]}
45... Rhe4 {[%clk 0:01:29.5]} 46. Kf2 {[%clk 0:00:04.3]} 46... g4 {[%clk
0:01:30]} 47. Ra7 {[%clk 0:00:03.9]} 47... h4 {[%clk 0:01:30.2]} 0-1

[Event "Late-Titled-Tuesday-Blitz-April-16-2024"]
[Site "Chess.com"]
[Date "2024.04.16"]
[Round "3"]
[White "Chempiblinka"]
[Black "TiagoMangialardo"]
[Result "1-0"]
[WhiteElo "2373"]
[BlackElo "2072"]
[TimeControl "180+1"]
[EndTime "14:27:05 PDT"]
[Termination "Chempiblinka won on time"]

1. d4 {[%clk 0:02:53.2]} 1... Nf6 {[%clk 0:02:42]} 2. c4 {[%clk 0:02:51.5]} 2...
c5 {[%clk 0:02:27.4]} 3. d5 {[%clk 0:02:51]} 3... g6 {[%clk 0:02:22.1]} 4. g3
{[%clk 0:02:39]} 4... Bg7 {[%clk 0:02:20.8]} 5. Bg2 {[%clk 0:02:39.1]} 5... d6
{[%clk 0:02:20.1]} 6. Nf3 {[%clk 0:02:39.1]} 6... O-O {[%clk 0:02:19]} 7. O-O
{[%clk 0:02:39.4]} 7... e6 {[%clk 0:02:19.1]} 8. Nc3 {[%clk 0:02:39.6]} 8...
exd5 {[%clk 0:02:18.6]} 9. cxd5 {[%clk 0:02:40.5]} 9... a6 {[%clk 0:02:16.4]}
10. a4 {[%clk 0:02:40.5]} 10... Re8 {[%clk 0:02:13.1]} 11. Bf4 {[%clk
0:02:39.8]} 11... Nh5 {[%clk 0:02:12.6]} 12. Bg5 {[%clk 0:02:39.2]} 12... Qb6
{[%clk 0:02:11.3]} 13. Qc1 {[%clk 0:02:34.2]} 13... Bxc3 {[%clk 0:01:46.2]} 14.
Qxc3 {[%clk 0:02:29.2]} 14... Rxe2 {[%clk 0:01:35.8]} 15. Rfe1 {[%clk
0:02:25.2]} 15... Rxe1+ {[%clk 0:01:19.9]} 16. Rxe1 {[%clk 0:02:24]} 16... Bd7
{[%clk 0:00:59]} 17. Bh6 {[%clk 0:02:10.2]} 17... Qb4 {[%clk 0:00:36.8]} 18. Qe3
{[%clk 0:02:01]} 18... Qxa4 {[%clk 0:00:12.7]} 19. Qe7 {[%clk 0:01:51.1]} 19...
Ng7 {[%clk 0:00:03.2]} 20. Ng5 {[%clk 0:01:39.1]} 20... Be8 {[%clk 0:00:01.4]}
21. Bxg7 {[%clk 0:01:03.1]} 21... Kxg7 {[%clk 0:00:02.3]} 22. Ne6+ {[%clk
0:00:44.6]} 22... Kh6 {[%clk 0:00:01.8]} 23. Qf8+ {[%clk 0:00:44.8]} 23... Kh5
{[%clk 0:00:01.8]} 24. Bf3+ {[%clk 0:00:45.2]} 1-0

[Event "Late-Titled-Tuesday-Blitz-April-16-2024"]
[Site "Chess.com"]
[Date "2024.04.16"]
[Round "3"]
[White "HajiyevKanan"]
[Black "tgpgoat"]
[Result "1-0"]
[WhiteElo "2610"]
[BlackElo "2420"]
[TimeControl "180+1"]
[EndTime "14:27:06 PDT"]
[Termination "HajiyevKanan won by resignation"]

1. d4 {[%clk 0:03:00.9]} 1... Nf6 {[%clk 0:02:49.1]} 2. Nf3 {[%clk 0:03:01.8]}
2... d5 {[%clk 0:02:48.8]} 3. c4 {[%clk 0:03:02.7]} 3... c6 {[%clk 0:02:49]} 4.
cxd5 {[%clk 0:03:02.4]} 4... cxd5 {[%clk 0:02:49]} 5. Nc3 {[%clk 0:03:03.2]}
5... Nc6 {[%clk 0:02:49.2]} 6. Bg5 {[%clk 0:03:03.9]} 6... Ne4 {[%clk 0:02:46]}
7. Bf4 {[%clk 0:03:04]} 7... g6 {[%clk 0:02:45.1]} 8. Qb3 {[%clk 0:03:02.7]}
8... Nxc3 {[%clk 0:02:44.4]} 9. bxc3 {[%clk 0:03:02.5]} 9... Bg7 {[%clk
0:02:44.9]} 10. e3 {[%clk 0:03:03]} 10... O-O {[%clk 0:02:44.6]} 11. Bd3 {[%clk
0:03:03.5]} 11... Bg4 {[%clk 0:02:44.3]} 12. O-O {[%clk 0:03:02.1]} 12... Qd7
{[%clk 0:02:42.2]} 13. Nd2 {[%clk 0:02:37.3]} 13... Bf5 {[%clk 0:02:39.4]} 14.
c4 {[%clk 0:02:16.6]} 14... Na5 {[%clk 0:02:34.2]} 15. Qc2 {[%clk 0:02:16.6]}
15... Bxd3 {[%clk 0:02:31.3]} 16. Qxd3 {[%clk 0:02:16.4]} 16... Nxc4 {[%clk
0:02:30.8]} 17. Nxc4 {[%clk 0:02:16.8]} 17... dxc4 {[%clk 0:02:29]} 18. Qxc4
{[%clk 0:02:17.7]} 18... Rac8 {[%clk 0:02:26.9]} 19. Qb3 {[%clk 0:02:16.8]}
19... b6 {[%clk 0:02:26.5]} 20. Rac1 {[%clk 0:02:16.6]} 20... Rxc1 {[%clk
0:02:25.1]} 21. Rxc1 {[%clk 0:02:17.5]} 21... Rc8 {[%clk 0:02:24.2]} 22. Rc4
{[%clk 0:02:16.8]} 22... Rxc4 {[%clk 0:02:20.4]} 23. Qxc4 {[%clk 0:02:17.7]}
23... h5 {[%clk 0:02:20]} 24. h3 {[%clk 0:02:16.8]} 24... a5 {[%clk 0:02:13.7]}
25. a4 {[%clk 0:02:16.5]} 25... e6 {[%clk 0:02:01.7]} 26. Bc7 {[%clk 0:02:15.5]}
26... e5 {[%clk 0:01:44.6]} 27. d5 {[%clk 0:02:09.2]} 27... e4 {[%clk
0:01:34.9]} 28. Bxb6 {[%clk 0:02:05.6]} 28... Qf5 {[%clk 0:01:28.4]} 29. Bxa5
{[%clk 0:01:59]} 29... Be5 {[%clk 0:01:29]} 30. Bb4 {[%clk 0:01:49.8]} 30... g5
{[%clk 0:01:26.3]} 31. d6 {[%clk 0:01:43.3]} 31... g4 {[%clk 0:01:22.3]} 32.
hxg4 {[%clk 0:01:43.6]} 32... hxg4 {[%clk 0:01:19.1]} 33. g3 {[%clk 0:01:38.6]}
33... Qf3 {[%clk 0:01:09.7]} 34. d7 {[%clk 0:01:37.6]} 34... Qd1+ {[%clk
0:01:01.5]} 35. Kg2 {[%clk 0:01:37]} 35... Qf3+ {[%clk 0:01:00.2]} 36. Kg1
{[%clk 0:01:37.6]} 36... Qd1+ {[%clk 0:01:00.5]} 37. Kh2 {[%clk 0:01:37.2]}
37... Qxd7 {[%clk 0:00:38.7]} 38. Qxe4 {[%clk 0:01:36.6]} 38... Qe6 {[%clk
0:00:37.3]} 39. Kg2 {[%clk 0:01:31]} 39... f5 {[%clk 0:00:32.8]} 40. Qa8+ {[%clk
0:01:30.1]} 40... Kf7 {[%clk 0:00:32.6]} 41. Qb7+ {[%clk 0:01:30.2]} 41... Kg6
{[%clk 0:00:32.8]} 42. a5 {[%clk 0:01:29.1]} 42... Kg5 {[%clk 0:00:20.6]} 43. a6
{[%clk 0:01:26.9]} 43... Qh6 {[%clk 0:00:20.9]} 44. Be7+ {[%clk 0:01:20.1]}
44... Bf6 {[%clk 0:00:21.3]} 45. Bxf6+ {[%clk 0:01:15.3]} 45... Qxf6 {[%clk
0:00:22.2]} 46. a7 {[%clk 0:01:13.2]} 46... f4 {[%clk 0:00:21.9]} 47. exf4+
{[%clk 0:01:09.9]} 47... Kf5 {[%clk 0:00:21.3]} 1-0

[Event "Late-Titled-Tuesday-Blitz-April-16-2024"]
[Site "Chess.com"]
[Date "2024.04.16"]
[Round "3"]
[White "pooh2012"]
[Black "Harsha_Bharathakoti"]
[Result "0-1"]
[WhiteElo "2514"]
[BlackElo "2914"]
[TimeControl "180+1"]
[EndTime "14:27:07 PDT"]
[Termination "Harsha_Bharathakoti won on time"]

1. Nf3 {[%clk 0:03:00.9]} 1... d5 {[%clk 0:02:59.9]} 2. b3 {[%clk 0:02:58.4]}
2... c6 {[%clk 0:02:59.3]} 3. Bb2 {[%clk 0:02:59]} 3... h6 {[%clk 0:03:00]} 4.
e3 {[%clk 0:02:58.4]} 4... Bf5 {[%clk 0:03:00.7]} 5. c4 {[%clk 0:02:57.9]} 5...
e6 {[%clk 0:03:01.2]} 6. Be2 {[%clk 0:02:57.1]} 6... Nf6 {[%clk 0:03:00.9]} 7.
O-O {[%clk 0:02:57.3]} 7... Be7 {[%clk 0:03:01.3]} 8. Nc3 {[%clk 0:02:55.9]}
8... Nbd7 {[%clk 0:03:01.3]} 9. cxd5 {[%clk 0:02:55.1]} 9... exd5 {[%clk
0:03:01.5]} 10. a3 {[%clk 0:02:52.9]} 10... a5 {[%clk 0:03:00.8]} 11. Re1 {[%clk
0:02:46]} 11... O-O {[%clk 0:03:01.2]} 12. d3 {[%clk 0:02:43.4]} 12... Re8
{[%clk 0:03:01]} 13. Qc2 {[%clk 0:02:41.8]} 13... Bh7 {[%clk 0:03:00.4]} 14. Bf1
{[%clk 0:02:37.5]} 14... Nc5 {[%clk 0:02:47.4]} 15. Nd4 {[%clk 0:02:19.9]} 15...
Bd6 {[%clk 0:02:41.3]} 16. h3 {[%clk 0:02:05.3]} 16... Ncd7 {[%clk 0:02:33.8]}
17. f4 {[%clk 0:01:59.5]} 17... Rc8 {[%clk 0:02:22.1]} 18. Rad1 {[%clk
0:01:49.3]} 18... Nc5 {[%clk 0:02:15.7]} 19. Nb1 {[%clk 0:00:42]} 19... Qb6
{[%clk 0:02:06.3]} 20. Nd2 {[%clk 0:00:36.5]} 20... Ncd7 {[%clk 0:01:50.7]} 21.
a4 {[%clk 0:00:29.8]} 21... Bb4 {[%clk 0:01:49.9]} 22. Re2 {[%clk 0:00:24.9]}
22... Nc5 {[%clk 0:01:47.9]} 23. N2f3 {[%clk 0:00:24.6]} 23... Re7 {[%clk
0:01:46.4]} 24. Ne5 {[%clk 0:00:22.8]} 24... Rce8 {[%clk 0:01:46.9]} 25. Ndf3
{[%clk 0:00:20.6]} 25... Nfd7 {[%clk 0:01:47.4]} 26. Bd4 {[%clk 0:00:19.5]}
26... Qd8 {[%clk 0:01:44.2]} 27. Rf2 {[%clk 0:00:18.4]} 27... Ne6 {[%clk
0:01:42.4]} 28. Bb2 {[%clk 0:00:15.3]} 28... Ndf8 {[%clk 0:01:38.1]} 29. g4
{[%clk 0:00:07.7]} 29... f6 {[%clk 0:01:37.7]} 30. f5 {[%clk 0:00:07.8]} 30...
Ng5 {[%clk 0:01:25.2]} 31. Nxg5 {[%clk 0:00:06.4]} 31... hxg5 {[%clk 0:01:26.1]}
32. Nf3 {[%clk 0:00:03]} 32... Rxe3 {[%clk 0:01:26.7]} 33. Bd4 {[%clk
0:00:02.5]} 33... R3e7 {[%clk 0:01:26.1]} 34. h4 {[%clk 0:00:02]} 34... c5
{[%clk 0:01:22.7]} 35. Bb2 {[%clk 0:00:01.3]} 35... gxh4 {[%clk 0:01:21.9]} 36.
Nxh4 {[%clk 0:00:01.9]} 36... Re1 {[%clk 0:01:17.7]} 37. Ng2 {[%clk 0:00:01.9]}
37... Rxd1 {[%clk 0:01:17.7]} 38. Qxd1 {[%clk 0:00:02.6]} 38... Nd7 {[%clk
0:01:18.2]} 39. Nf4 {[%clk 0:00:02.6]} 39... Ne5 {[%clk 0:01:18.7]} 40. Bg2
{[%clk 0:00:02.5]} 40... Nf7 {[%clk 0:01:13.7]} 41. Nxd5 {[%clk 0:00:02]} 41...
Re1+ {[%clk 0:01:13.7]} 0-1

[Event "Late-Titled-Tuesday-Blitz-April-16-2024"]
[Site "Chess.com"]
[Date "2024.04.16"]
[Round "3"]
[White "JiangoFett"]
[Black "Fins0905"]
[Result "0-1"]
[WhiteElo "2544"]
[BlackElo "2775"]
[TimeControl "180+1"]
[EndTime "14:27:14 PDT"]
[Termination "Fins0905 won by resignation"]

1. c4 {[%clk 0:03:00.9]} 1... c6 {[%clk 0:02:57.9]} 2. d4 {[%clk 0:03:00.3]}
2... d5 {[%clk 0:02:58]} 3. Nf3 {[%clk 0:03:00.9]} 3... Nf6 {[%clk 0:02:58]} 4.
Nc3 {[%clk 0:03:00.9]} 4... dxc4 {[%clk 0:02:57.8]} 5. a4 {[%clk 0:03:01.4]}
5... Bf5 {[%clk 0:02:57.5]} 6. Ne5 {[%clk 0:03:01.6]} 6... Nbd7 {[%clk
0:02:56.3]} 7. Nxc4 {[%clk 0:02:59.1]} 7... Nb6 {[%clk 0:02:55.7]} 8. Ne5 {[%clk
0:02:55.6]} 8... a5 {[%clk 0:02:50]} 9. e3 {[%clk 0:02:53.9]} 9... h6 {[%clk
0:02:47.7]} 10. Bd3 {[%clk 0:02:34.2]} 10... Bxd3 {[%clk 0:02:43.6]} 11. Qxd3
{[%clk 0:02:35.1]} 11... e6 {[%clk 0:02:43.8]} 12. O-O {[%clk 0:02:28.9]} 12...
Bb4 {[%clk 0:02:40.2]} 13. Ne2 {[%clk 0:02:18.5]} 13... O-O {[%clk 0:02:37.4]}
14. Ng3 {[%clk 0:02:14.6]} 14... Qe7 {[%clk 0:02:25.7]} 15. b3 {[%clk 0:02:00]}
15... Rfd8 {[%clk 0:02:24.2]} 16. Bb2 {[%clk 0:01:55.3]} 16... Rac8 {[%clk
0:02:21.2]} 17. Rfd1 {[%clk 0:01:45.9]} 17... Nbd7 {[%clk 0:02:08.5]} 18. Nc4
{[%clk 0:01:28.1]} 18... Nd5 {[%clk 0:01:53]} 19. e4 {[%clk 0:01:19.5]} 19...
Nf4 {[%clk 0:01:52.5]} 20. Qf3 {[%clk 0:01:16.5]} 20... Ng6 {[%clk 0:01:51.8]}
21. Nh5 {[%clk 0:01:09.4]} 21... Qg5 {[%clk 0:01:45.2]} 22. Bc1 {[%clk
0:00:53.9]} 22... Nh4 {[%clk 0:01:34.9]} 23. Bxg5 {[%clk 0:00:39.9]} 23... Nxf3+
{[%clk 0:01:33.7]} 24. gxf3 {[%clk 0:00:40.8]} 24... hxg5 {[%clk 0:01:34.1]} 25.
Rac1 {[%clk 0:00:31.8]} 25... b5 {[%clk 0:01:12]} 26. Ne3 {[%clk 0:00:24.6]}
26... Nb6 {[%clk 0:01:03.6]} 27. axb5 {[%clk 0:00:10.8]} 27... cxb5 {[%clk
0:01:04.5]} 28. Ng3 {[%clk 0:00:10.3]} 28... Rxc1 {[%clk 0:00:57.7]} 29. Rxc1
{[%clk 0:00:11.2]} 29... Rxd4 {[%clk 0:00:57.6]} 30. Rc6 {[%clk 0:00:11.9]}
30... Rd6 {[%clk 0:00:54.2]} 31. Rc7 {[%clk 0:00:09.8]} 31... a4 {[%clk
0:00:53.4]} 32. Ng4 {[%clk 0:00:09.6]} 32... axb3 {[%clk 0:00:51.1]} 33. Ne5
{[%clk 0:00:08.9]} 33... b2 {[%clk 0:00:49.5]} 0-1

[Event "Late-Titled-Tuesday-Blitz-April-16-2024"]
[Site "Chess.com"]
[Date "2024.04.16"]
[Round "3"]
[White "MathiasWomacka"]
[Black "CarlosjPineror"]
[Result "1-0"]
[WhiteElo "2509"]
[BlackElo "2696"]
[TimeControl "180+1"]
[EndTime "14:27:14 PDT"]
[Termination "MathiasWomacka won by resignation"]

1. e4 {[%clk 0:02:58]} 1... c5 {[%clk 0:03:00.1]} 2. Nf3 {[%clk 0:02:57]} 2...
e6 {[%clk 0:03:00.3]} 3. d4 {[%clk 0:02:56.3]} 3... cxd4 {[%clk 0:03:01.2]} 4.
Nxd4 {[%clk 0:02:56.4]} 4... a6 {[%clk 0:03:01.9]} 5. Bd3 {[%clk 0:02:55]} 5...
Qc7 {[%clk 0:03:02.5]} 6. Qe2 {[%clk 0:02:52.6]} 6... Nf6 {[%clk 0:03:01.5]} 7.
O-O {[%clk 0:02:51]} 7... h5 {[%clk 0:02:59.5]} 8. h3 {[%clk 0:02:50.4]} 8... b5
{[%clk 0:02:58.2]} 9. a4 {[%clk 0:02:40.4]} 9... b4 {[%clk 0:02:57.1]} 10. Nd2
{[%clk 0:02:39.4]} 10... Bb7 {[%clk 0:02:57]} 11. a5 {[%clk 0:02:34.8]} 11...
Nc6 {[%clk 0:02:52.4]} 12. Nxc6 {[%clk 0:02:31.4]} 12... Qxc6 {[%clk 0:02:50.3]}
13. Re1 {[%clk 0:02:19.8]} 13... Be7 {[%clk 0:02:36.8]} 14. Nc4 {[%clk
0:02:19.4]} 14... d5 {[%clk 0:02:33.6]} 15. exd5 {[%clk 0:02:16.1]} 15... Qxd5
{[%clk 0:02:34.2]} 16. f3 {[%clk 0:02:00.3]} 16... Rd8 {[%clk 0:02:29.9]} 17.
Nb6 {[%clk 0:01:59]} 17... Qc6 {[%clk 0:02:21.9]} 18. Bxa6 {[%clk 0:01:55.6]}
18... Bxa6 {[%clk 0:02:22.8]} 19. Qxa6 {[%clk 0:01:55.1]} 19... Bc5+ {[%clk
0:02:18]} 20. Be3 {[%clk 0:01:50.9]} 20... Bxe3+ {[%clk 0:02:09.7]} 21. Rxe3
{[%clk 0:01:51.8]} 21... Qc5 {[%clk 0:02:10.2]} 22. Qe2 {[%clk 0:01:50.9]} 22...
O-O {[%clk 0:02:05.2]} 23. Kh1 {[%clk 0:01:47.2]} 23... h4 {[%clk 0:02:01.7]}
24. Re5 {[%clk 0:01:39.6]} 24... Qc7 {[%clk 0:01:54.9]} 25. Nc4 {[%clk
0:01:31.7]} 25... Rd4 {[%clk 0:01:48.3]} 26. b3 {[%clk 0:01:29.1]} 26... g6
{[%clk 0:01:48.3]} 27. a6 {[%clk 0:01:16.6]} 27... Nh5 {[%clk 0:01:44.8]} 28.
Rxh5 {[%clk 0:01:00.7]} 28... gxh5 {[%clk 0:01:45.7]} 29. Qe3 {[%clk 0:01:01]}
29... Rd5 {[%clk 0:01:42.2]} 30. a7 {[%clk 0:00:56.1]} 30... Ra8 {[%clk
0:01:37.9]} 31. Nb6 {[%clk 0:00:52.7]} 31... Rxa7 {[%clk 0:01:34]} 32. Rxa7
{[%clk 0:00:51.7]} 32... Qxa7 {[%clk 0:01:34.9]} 33. Nxd5 {[%clk 0:00:51.6]}
33... Qa1+ {[%clk 0:01:24.1]} 34. Qg1 {[%clk 0:00:51.3]} 34... Qxg1+ {[%clk
0:01:13.1]} 35. Kxg1 {[%clk 0:00:52.2]} 35... exd5 {[%clk 0:01:13.2]} 36. Kf2
{[%clk 0:00:52.5]} 36... Kf8 {[%clk 0:01:06.9]} 37. Ke3 {[%clk 0:00:52.5]} 37...
Ke7 {[%clk 0:01:06.8]} 38. Kd4 {[%clk 0:00:52.7]} 38... Kd6 {[%clk 0:01:05.1]}
39. c3 {[%clk 0:00:52.2]} 39... bxc3 {[%clk 0:00:57.9]} 40. Kxc3 {[%clk
0:00:53.1]} 40... Ke5 {[%clk 0:00:58.5]} 41. b4 {[%clk 0:00:51.6]} 41... f5
{[%clk 0:00:53.4]} 42. b5 {[%clk 0:00:48]} 42... f4 {[%clk 0:00:50.6]} 43. b6
{[%clk 0:00:46.3]} 43... Kd6 {[%clk 0:00:46.5]} 44. Kd4 {[%clk 0:00:46.3]} 44...
Kc6 {[%clk 0:00:44.8]} 45. b7 {[%clk 0:00:46.1]} 45... Kxb7 {[%clk 0:00:45.2]}
46. Kxd5 {[%clk 0:00:46.5]} 46... Kb6 {[%clk 0:00:45.1]} 47. Ke5 {[%clk
0:00:46.6]} 47... Kc5 {[%clk 0:00:46]} 48. Kxf4 {[%clk 0:00:46.7]} 48... Kd4
{[%clk 0:00:46.9]} 49. Kg5 {[%clk 0:00:46]} 49... Ke3 {[%clk 0:00:47.5]} 50.
Kxh4 {[%clk 0:00:45.6]} 50... Kf2 {[%clk 0:00:48.4]} 1-0